fUSD/lending_fUSD_20260111
["ID","MTS","AMOUNT","RATE_DAILY","PERIOD"]
[401294293,1768115440684,-500.0,0.00017358,2]
[401294295,1768115440693,-500.0,0.00017358,2]
[401294297,1768115440702,-204.87968376,0.00017358,2]
[401294299,1768115440711,-204.87968374,0.00017418,2]
[401294300,1768115440721,-500.0,0.00017458,2]
[401294302,1768115440730,-500.0,0.00017458,2]
[401294304,1768115440739,-204.87968374,0.00017478,2]
[401294306,1768115440749,-2000.0,0.000175,2]
[401294309,1768115440759,-204.87968374,0.00017539,2]
[401294310,1768115440768,-204.87968374,0.00017599,2]
[401294313,1768115440778,-204.87968374,0.00017659,2]
[401294314,1768115440788,-204.87968374,0.00017719,2]
[401294315,1768115440798,-204.87968374,0.0001778,2]
[401294316,1768115440808,-204.87968374,0.0001784,2]
[401294317,1768115440818,-10000.0,0.000179,2]
[401294318,1768115440827,-169.89291337,0.000179,2]
[401294319,1768115440837,-163.59,0.000179,2]
[401294320,1768115440846,-255.8202143,0.000179,3]
[401294321,1768115440856,-204.87968374,0.000179,2]
[401294322,1768115440865,-500.0,0.00017989,2]
[401294323,1768115440874,-500.0,0.00017989,2]
[401294325,1768115440884,-500.0,0.00017989,2]
[401294327,1768115440893,-500.0,0.00017989,2]
[401294329,1768115440903,-500.0,0.00017989,2]
[401294331,1768115440912,-500.0,0.00017989,2]
[401294332,1768115440922,-238.92822807,0.00017989,2]
[401294334,1768115440932,-300.0,0.00017999,2]
[401294336,1768115440941,-683.01725036,0.00017999,2]
[401294338,1768115440950,-500.0,0.00017999,2]
[401294340,1768115440959,-418.78920408,0.00017999,2]
[401294342,1768115440968,-500.0,0.00017999,2]
[401294345,1768115440978,-501.34803281,0.00017999,2]
[401294346,1768115440987,-258.6763442,0.00017999,2]
[401294348,1768115440996,-6331.0,0.00018,2]
[401294350,1768115441006,-2849707.02178114,0.00018,2]
[401294744,1768115445184,-4867.0,0.00018,2]
[401294747,1768115445195,-292.99391299,0.00018,2]
[401294752,1768115445232,-1938.0774899,0.00018,2]
[401294754,1768115445244,-1491.625,0.00018,2]
[401294756,1768115445255,-1772.16665824,0.00018,2]
[401294868,1768115446452,-1925.5433417,0.000179,2]
[401294870,1768115446462,-1355.5085637,0.00018,2]
[401296020,1768115578281,-434.639,0.00016641,2]
[401296021,1768115578305,-150.0,0.00016979,2]
[401296022,1768115578334,-968.49508224,0.0001698,2]
[401296047,1768115762121,227.42,0.00014,2]
[401296049,1768115784909,227.42,0.00014,2]
[401296130,1768115877752,-166.66,0.00015995,2]
[401296131,1768115877778,-130.672725,0.00016331,2]
[401296245,1768116631448,-287.0,0.00016331,2]
[401296246,1768116631459,-23.2158656,0.00016331,2]
[401296247,1768116631474,-12.7714094,0.00016331,2]
[401296248,1768116631483,-162.63,0.00016367,2]
[401296249,1768116631493,-2685.87,0.00016438,2]
[401296250,1768116631505,-210.95,0.00016503,2]
[401296251,1768116631516,-3562.65,0.00016506,2]
[401296252,1768116631526,-1200.0,0.0001661,2]
[401296253,1768116631535,-1779.28,0.00016611,2]
[401296254,1768116631545,-166.66,0.00016668,2]
[401296255,1768116631555,-258.3901,0.0001688,2]
[401296256,1768116631565,-277.0,0.00016903,2]
[401296257,1768116631575,-184.3917154,0.00016905,2]
[401296258,1768116631584,-368.54029889,0.0001697,2]
[401296259,1768116631603,-136.97833423,0.0001697,2]
[401296260,1768116631613,-276.88366847,0.00016977,2]
[401296261,1768116631629,-204.11633153,0.00016977,2]
[401296262,1768116631639,-347.712,0.00016979,2]
[401296263,1768116631648,-232.19308684,0.00016979,2]
[401296264,1768116631659,-166.66,0.00017005,2]
[401296265,1768116631668,-184.39171537,0.00017016,2]
[401296266,1768116631677,-210.95,0.00017122,2]
[401296267,1768116631686,-184.39171537,0.00017126,2]
[401296268,1768116631696,-184.39171537,0.00017237,2]
[401296269,1768116631705,-166.66,0.00017312,2]
[401296270,1768116631715,-166.66,0.00017342,2]
[401296271,1768116631724,-184.39171537,0.00017347,2]
[401296272,1768116631734,-184.39171537,0.00017458,2]
[401296273,1768116631744,-162.63,0.00017459,2]
[401296274,1768116631753,-2000.0,0.000175,2]
[401296275,1768116631763,-184.39171537,0.00017568,2]
[401296276,1768116631772,-5041.75963632,0.0001764,2]
[401296277,1768116631782,-166.66,0.00017678,2]
[401296278,1768116631792,-184.39171537,0.00017679,2]
[401296279,1768116631801,-1000.0,0.000177,2]
[401296280,1768116631811,-1032.0,0.000177,2]
[401296281,1768116631820,-210.95,0.00017741,2]
[401296283,1768116631830,-250.45032902,0.00017774,2]
[401296284,1768116631839,-184.39171537,0.00017789,2]
[401296285,1768116631849,-5103.28849784,0.0001787,2]
[401296446,1768116639519,-258.39013124,0.0001688,2]
[401296474,1768116639779,-738681.21156876,0.0001688,2]
[401296476,1768116639789,-26096.84646029,0.0001787,2]
[401296478,1768116639799,-10000.0,0.000179,2]
[401296481,1768116639809,-169.89291337,0.000179,2]
[401296483,1768116639819,-184.39171537,0.000179,2]
[401296485,1768116639828,-6860.56672343,0.000179,2]
[401296487,1768116639838,-1071.4797401,0.00017997,2]
[401296489,1768116639847,-51011.2800671,0.00017997,2]
[401296491,1768116639858,-7586.2939081,0.00017997,2]
[401296493,1768116639868,-16655.4989127,0.00017997,2]
[401296495,1768116639878,-500.0,0.00017999,2]
[401296497,1768116639887,-536.12,0.00017999,2]
[401296499,1768116639897,-300.0,0.00017999,2]
[401296501,1768116639906,-683.01725036,0.00017999,2]
[401296503,1768116639916,-306.79325739,0.00017999,2]
[401296505,1768116639926,-501.34803281,0.00017999,2]
[401296507,1768116639936,-258.6763442,0.00017999,2]
[401296509,1768116639946,-500.0,0.00017999,2]
[401296511,1768116639956,-500.0,0.00017999,2]
[401296513,1768116639966,-418.78920408,0.00017999,2]
[401296515,1768116639975,-6331.0,0.00018,2]
[401296517,1768116639985,-2004079.75755401,0.00018,2]
[401296989,1768116644638,-170.488088,0.000179,2]
[401296992,1768116644648,-2652.16844768,0.00018,2]
[401297089,1768116645661,-222.12327296,0.0001777,2]
[401297091,1768116645670,-3474.30572716,0.00018,2]
[401297094,1768116645688,-2410.33831613,0.00018,2]
[401297103,1768116645772,-1030.39263457,0.00018,2]
[401298496,1768117513962,182.56,8.458e-05,2]
[401298497,1768117514058,182.56,0.00011166,2]
[401298498,1768117514214,182.56,0.00013875,2]
[401298504,1768117617863,-200.3251088,0.00016318,2]
[401298510,1768117649687,-79.1589005,0.00016318,2]
[401298511,1768117649711,-250.0,0.0001639,2]
[401298512,1768117649733,-20.68641392,0.0001639,2]
[401298513,1768117653747,-248.05759627,0.0001639,2]
[401298514,1768117656532,-31.25598981,0.0001639,2]
[401298515,1768117656556,-168.84310972,0.00016405,2]
[401298516,1768117658271,-26.15689028,0.00016405,2]
[401298517,1768117658294,-379.87704043,0.00016405,2]
[401298518,1768117661366,-253.42816147,0.00016405,2]
[401298519,1768117664722,-161.61997633,0.00016405,2]
[401298520,1768117666913,-252.88906652,0.00016405,2]
[401298521,1768117670833,-151.0,0.00016339,2]
[401298522,1768117670856,-89.14988688,0.00016339,2]
[401298523,1768117673082,-61.85011312,0.00016339,2]
[401298524,1768117673105,-207.1827983,0.00016405,2]
[401298525,1768117675237,-187.54007036,0.00016405,2]
[401298526,1768117678304,-224.39,0.00016405,2]
[401298527,1768117680640,-164.50904285,0.00016405,2]
[401298532,1768117708353,-151.0,0.00016339,2]
[401298533,1768117708377,-27.54691438,0.00016339,2]
[401298534,1768117710092,-123.45308562,0.00016339,2]
[401298535,1768117710114,-58.75090047,0.00016405,2]
[401298537,1768117739084,-246.79437214,0.00016405,2]
[401298538,1768117740962,-221.1910972,0.00016405,2]
[401298539,1768117744455,-141.82747393,0.00016405,2]
[401298540,1768117744477,-74.23296494,0.00016418,2]
[401298541,1768117749227,-291.23394379,0.00016418,2]
[401298542,1768117755182,-23.5001082,0.00016418,2]
[401298543,1768117755207,-300.0,0.00016418,2]
[401298544,1768117755233,-11.52482693,0.00016418,2]
[401298545,1768117782860,-151.0,0.00016329,2]
[401298546,1768117782883,-15.66,0.00016329,2]
[401298550,1768117813379,-135.34,0.00016329,2]
[401298551,1768117813402,-20.28838882,0.00016404,2]
[401298552,1768117815520,-182.13039526,0.00016404,2]
[401298563,1768117818235,-71.55801649,0.00016404,2]
[401298564,1768117818257,-199.96669675,0.00016418,2]
[401298565,1768117820723,-88.50847632,0.00016418,2]
[401298566,1768117820747,-152.24156188,0.00016418,2]
[401298567,1768117823883,-95.65232787,0.00016418,2]
[401298568,1768117823906,-165.23750395,0.00016424,2]
[401298569,1768117825670,-134.76249605,0.00016424,2]
[401298570,1768117825694,-88.20814756,0.00016425,2]
[401298574,1768117831756,-2411.79185244,0.00016425,2]
[401298575,1768117831768,-2500.0,0.00016425,2]
[401298576,1768117831779,-800.0,0.00016438,2]
[401298577,1768117831794,-150.0,0.00016441,2]
[401298578,1768117831809,-436.93,0.00016448,2]
[401298579,1768117831820,-182.56,0.00016584,2]
[401298580,1768117831831,-226.62,0.00016825,2]
[401298581,1768117831843,-500.0,0.0001698,2]
[401298582,1768117831853,-500.0,0.0001698,2]
[401298583,1768117831864,-500.0,0.0001698,2]
[401298584,1768117831873,-3240.0,0.00016992,2]
[401298585,1768117831883,-500.0,0.00017,2]
[401298586,1768117831893,-500.0,0.00017,2]
[401298587,1768117831903,-500.0,0.00017,5]
[401298588,1768117831914,-550.0,0.00017072,2]
[401298589,1768117831924,-500.0,0.00017073,2]
[401298590,1768117831934,-501.13930281,0.00017073,2]
[401298591,1768117831944,-500.79774172,0.00017073,2]
[401298592,1768117831955,-500.0,0.00017073,2]
[401298593,1768117831965,-500.48035711,0.00017073,2]
[401298594,1768117831975,-500.0,0.00017073,2]
[401298595,1768117831985,-224.6441323,0.00017073,2]
[401298596,1768117831995,-500.0,0.00017073,2]
[401298597,1768117832005,-500.0,0.00017073,2]
[401298598,1768117832015,-511.23980469,0.00017073,2]
[401298600,1768117832026,-501.02521969,0.00017073,2]
[401298601,1768117832036,-500.0,0.00017073,2]
[401298602,1768117832046,-500.0,0.00017073,2]
[401298603,1768117832055,-503.2370208,0.00017073,2]
[401298604,1768117832065,-500.0,0.00017073,2]
[401298605,1768117832075,-500.0,0.00017073,2]
[401298606,1768117832085,-500.0,0.00017073,2]
[401298607,1768117832095,-500.0,0.00017073,2]
[401298608,1768117832105,-200.0,0.0001731,2]
[401298609,1768117832115,-168.39,0.00017355,2]
[401298610,1768117832125,-2000.0,0.000175,2]
[401298611,1768117832135,-211.20104298,0.00017534,2]
[401298612,1768117832145,-500.0,0.00017589,2]
[401298613,1768117832156,-500.0,0.00017589,2]
[401298614,1768117832166,-500.0,0.00017589,2]
[401298615,1768117832176,-500.0,0.00017589,2]
[401298616,1768117832190,-500.0,0.00017589,2]
[401298617,1768117832200,-500.0,0.00017589,2]
[401298618,1768117832211,-500.0,0.00017589,2]
[401298619,1768117832223,-238.92822807,0.00017589,2]
[401298620,1768117832233,-13502.7836982,0.000176,2]
[401298622,1768117832247,-91722.8281018,0.000176,2]
[401298623,1768117832257,-2500.0,0.00017611,2]
[401298624,1768117832269,-6630.56524127,0.00017611,2]
[401298625,1768117832280,-1000.0,0.00017621,2]
[401298626,1768117832291,-549.42963918,0.00017621,2]
[401298627,1768117832302,-1000.0,0.00017621,2]
[401298628,1768117832314,-1000.0,0.00017621,2]
[401298629,1768117832325,-1072.03852483,0.00017621,2]
[401298630,1768117832336,-1000.0,0.00017621,2]
[401298631,1768117832347,-1000.0,0.00017621,2]
[401298632,1768117832358,-504.95792057,0.00017621,2]
[401298633,1768117832369,-1000.0,0.00017621,2]
[401298634,1768117832380,-1000.0,0.00017621,2]
[401298635,1768117832391,-2520.87981816,0.0001764,2]
[401298636,1768117832401,-5792.31516058,0.00017643,2]
[401298637,1768117832450,-838.25008066,0.00017643,2]
[401298638,1768117832461,-4885.21154888,0.00017675,2]
[401298639,1768117832474,-1745.35369236,0.00017675,2]
[401298640,1768117832485,-169.71864919,0.000177,2]
[401298641,1768117832495,-6630.56524124,0.00017707,2]
[401298642,1768117832509,-2963.45482271,0.00017711,2]
[401298643,1768117832524,-1398.98959839,0.00017711,2]
[401298644,1768117832538,-518.0,0.00017711,2]
[401298645,1768117832553,-322.59321388,0.00017711,2]
[401298646,1768117832566,-11367.31893508,0.00017711,2]
[401298647,1768117832584,-501.01040161,0.00017711,2]
[401298648,1768117832603,-260.03248731,0.00017711,2]
[401298649,1768117833179,-1028.25764269,0.00017711,2]
[401298650,1768117833200,-151.0,0.00016354,2]
[401298651,1768117833211,-5827.33274471,0.00017711,2]
[401298652,1768117833223,-392.7272168,0.00017711,2]
[401298653,1768117833241,-1957.15258626,0.00017711,2]
[401298654,1768117833253,-1975.34666119,0.00017711,2]
[401298655,1768117833266,-906.816,0.00017711,2]
[401298656,1768117833279,-3140.35799868,0.00017711,2]
[401298657,1768117833292,-1377.69079332,0.00017711,2]
[401298660,1768117837858,-151.0,0.00016366,2]
[401298661,1768117837869,-10742.63581565,0.00017711,2]
[401298662,1768117838217,-3671.06059036,0.00017711,2]
[401298663,1768117838234,-542.46609112,0.00017711,2]
[401298664,1768117838263,-10225.34730484,0.00017711,2]
[401298665,1768117838273,-1071.4797401,0.00017711,2]
[401298667,1768117838283,-55639.7385494,0.00017711,2]
[401298669,1768117838293,-2772.0412415,0.00017711,2]
[401298671,1768117838303,-6630.56524124,0.00017739,2]
[401298673,1768117838313,-6630.56524124,0.00017772,2]
[401298675,1768117838326,-1569.05238271,0.000178,2]
[401298677,1768117838335,-6630.56524124,0.00017804,2]
[401298679,1768117838345,-1569.05238267,0.00017811,2]
[401298681,1768117838355,-1000.0,0.00017819,2]
[401298683,1768117838366,-1569.05238267,0.00017822,2]
[401298685,1768117838376,-1000.0,0.00017823,2]
[401298687,1768117838386,-1569.05238267,0.00017833,2]
[401298689,1768117838395,-6630.56524124,0.00017836,2]
[401298691,1768117838404,-1569.05238267,0.00017844,2]
[401298693,1768117838415,-1569.05238267,0.00017856,2]
[401298695,1768117838424,-1569.05238267,0.00017867,2]
[401298697,1768117838434,-6630.56524124,0.00017868,2]
[401298699,1768117838444,-1569.05238267,0.00017878,2]
[401298701,1768117838454,-1569.05238267,0.00017889,2]
[401298703,1768117838463,-10000.0,0.000179,2]
[401298705,1768117838473,-33584.3474,0.000179,2]
[401298707,1768117838483,-1000.0,0.000179,2]
[401298709,1768117838493,-188.22754883,0.000179,2]
[401298711,1768117838503,-6630.56524124,0.000179,2]
[401298713,1768117838513,-1283.69556112,0.000179,2]
[401298715,1768117838522,-160.81419358,0.000179,2]
[401298717,1768117838532,-1569.05238267,0.000179,2]
[401298719,1768117838541,-10936.9697158,0.00017996,2]
[401298721,1768117838551,-500.0,0.00017999,2]
[401298723,1768117838560,-500.0,0.00017999,2]
[401298725,1768117838570,-500.0,0.00017999,2]
[401298727,1768117838580,-500.0,0.00017999,2]
[401298729,1768117838590,-500.0,0.00017999,2]
[401298731,1768117838599,-500.0,0.00017999,2]
[401298733,1768117838608,-500.0,0.00017999,2]
[401298734,1768117838617,-500.0,0.00017999,2]
[401298736,1768117838627,-167.52941689,0.00017999,2]
[401298738,1768117838636,-536.12,0.00017999,2]
[401298740,1768117838646,-500.0,0.00017999,2]
[401298742,1768117838655,-500.0,0.00017999,2]
[401298744,1768117838664,-500.0,0.00017999,2]
[401298746,1768117838674,-500.0,0.00017999,2]
[401298748,1768117838684,-508.37435903,0.00017999,2]
[401298750,1768117838694,-300.0,0.00017999,2]
[401298752,1768117838703,-683.01725036,0.00017999,2]
[401298754,1768117838713,-300.0,0.00017999,2]
[401298756,1768117838722,-150.40440984,0.00017999,2]
[401298758,1768117838732,-6337.0,0.00018,2]
[401298760,1768117838741,-150.0,0.00018,2]
[401298762,1768117838751,-12749.17522172,0.00018,2]
[401298863,1768117839928,-182009.70291442,0.00018,2]
[401298865,1768117839939,-369.0,0.00018,2]
[401298868,1768117839951,-2335.93824332,0.00018,2]
[401298870,1768117839962,-725.91164319,0.00018,2]
[401298876,1768117840016,-654183.47627615,0.00018,2]
[401298878,1768117840025,-395263.0436757,0.00018,2]
[401298880,1768117840035,-105401.84236349,0.00018,2]
[401298883,1768117840044,-953606.54330768,0.00018,2]
[401298890,1768117840108,-357356.80934799,0.00018,2]
[401298892,1768117840117,-2297784.99647003,0.00018,2]
[401298936,1768117840522,-1.7e-07,0.00018,2]
[401298938,1768117840534,-2524.80372842,0.00018,2]
[401299286,1768117843999,-472.3197,0.00018,2]
[401299335,1768117844500,-8515.19213263,0.00018,2]
[401299338,1768117844516,-1363.98258324,0.00018,2]
[401299340,1768117844532,-3501.92849186,0.00018,2]
[401299386,1768117845100,-6718.71277972,0.00018,2]
[401299439,1768117845627,-598.44994,0.00018,2]
[401299441,1768117845638,-538.9811538,0.00018,2]
[401299452,1768117845736,-149.97201293,0.00018,2]
[401299469,1768117845895,-950.2084758,0.00018,2]
[401299471,1768117845907,-928.58511849,0.00018,2]
[401300685,1768117917712,-421.1354126,0.00016438,2]
[401300711,1768117920968,-164.33584398,0.00016438,2]
[401300712,1768117924605,-198.0,0.00016438,2]
[401300769,1768118037591,1000.969,1.07e-06,14]
[401300844,1768118104388,177.86,0.00025502,120]
[401300951,1768118217728,-372.89870039,0.00016438,2]
[401300952,1768118222244,-431.31728174,0.00016438,2]
[401300956,1768118368411,-83.78401787,0.00016438,2]
[401300957,1768118368440,-179.36596267,0.0001671,2]
[401300960,1768118373036,-200.0,0.0001671,2]
[401300963,1768118375055,-184.13464921,0.0001671,2]
[401300964,1768118377001,-453.54958009,0.0001671,2]
[401300968,1768118397778,-93.87980803,0.0001671,2]
[401300969,1768118397801,-458.68832832,0.00016788,2]
[401300970,1768118400304,-283.69046384,0.00016788,2]
[401300971,1768118402449,-328.03404384,0.00016788,2]
[401300980,1768118407171,-160.3090297,0.00016788,2]
[401300983,1768118410622,-130.6909703,0.00016788,2]
[401300984,1768118410645,-110.11449951,0.00016788,2]
[401300985,1768118412558,-190.03023454,0.00016788,2]
[401300986,1768118414329,-267.17649517,0.00016788,2]
[401300989,1768118418040,-397.82381289,0.00016788,2]
[401300990,1768118421828,-323.89022694,0.00016788,2]
[401300991,1768118425143,-182.91701598,0.00016788,2]
[401300992,1768118427503,-335.98824633,0.00016788,2]
[401300993,1768118431315,-168.15255486,0.00016788,2]
[401300994,1768118434320,-173.41473106,0.00016788,2]
[401300995,1768118435805,-282.01494241,0.00016788,2]
[401301024,1768118438946,-380.10346555,0.00016788,2]
[401301037,1768118440895,-274.18666881,0.00016788,2]
[401301038,1768118444141,-327.02019234,0.00016788,2]
[401301039,1768118446960,-302.25999983,0.00016788,2]
[401301040,1768118448724,-239.62801053,0.00016788,2]
[401301041,1768118453614,-180.43689991,0.00016788,2]
[401301042,1768118455260,-413.62305256,0.00016788,2]
[401301043,1768118457889,-199.03312016,0.00016788,2]
[401301044,1768118460579,-296.29676817,0.00016788,2]
[401301045,1768118462653,-565.80111167,0.00016788,2]
[401301046,1768118465310,-214.65359386,0.00016788,2]
[401301047,1768118467470,-206.13,0.00016788,2]
[401301063,1768118470842,-216.04641813,0.00016788,2]
[401301080,1768118472290,-169.25835888,0.00016788,2]
[401301084,1768118473835,-301.02110693,0.00016788,2]
[401301085,1768118475420,-299.4769934,0.00016788,2]
[401301093,1768118487721,-166.66,0.00015731,2]
[401301094,1768118487745,-137.65424507,0.00016062,2]
[401301144,1768118578867,-29.00575493,0.00016062,2]
[401301145,1768118578892,-151.0,0.00016209,2]
[401301146,1768118579255,-151.0,0.00016209,2]
[401301147,1768118579282,-121.30272585,0.00016393,2]
[401301148,1768118607737,-151.0,0.00016209,2]
[401301149,1768118607760,-151.0,0.00016209,2]
[401301150,1768118607784,-151.0,0.0001622,2]
[401301151,1768118607807,-95.20288842,0.0001622,2]
[401301152,1768118623913,-151.0,0.00016209,2]
[401301153,1768118623936,-124.08566374,0.00016209,2]
[401301154,1768118637833,-262.17148252,0.00016128,2]
[401301155,1768118640082,-265.46135553,0.00016128,2]
[401301156,1768118642167,-189.44339648,0.00016128,2]
[401301157,1768118668937,-26.91433626,0.00016209,2]
[401301158,1768118668962,-151.0,0.00016212,2]
[401301159,1768118668986,-124.08566374,0.00016212,2]
[401301164,1768118697778,-26.91433626,0.00016212,2]
[401301165,1768118697800,-151.0,0.00016212,2]
[401301166,1768118697822,-124.08566374,0.00016212,2]
[401301167,1768118712749,-150.0,0.000162,2]
[401301168,1768118712774,-150.0,0.000162,2]
[401301169,1768118712800,-26.91433626,0.00016212,2]
[401301170,1768118712824,-151.0,0.00016212,2]
[401301171,1768118712848,-2.38318907,0.00016212,2]
[401301172,1768118715332,-148.61681093,0.00016212,2]
[401301173,1768118715355,-33.22094456,0.00016215,2]
[401301174,1768118717808,-117.77905544,0.00016215,2]
[401301175,1768118717834,-151.0,0.00016215,2]
[401301176,1768118717861,-31.22094456,0.00016393,2]
[401301177,1768118742792,-150.0,0.000162,2]
[401301178,1768118742817,-38.86471918,0.00016215,2]
[401301189,1768118772957,-112.13528082,0.00016215,2]
[401301190,1768118772980,-151.0,0.00016215,2]
[401301191,1768118773004,-151.0,0.00016215,2]
[401301192,1768118773028,-85.86471918,0.00016215,2]
[401301248,1768119031821,-151.0,0.00016201,2]
[401301249,1768119031830,-151.0,0.00016201,2]
[401301250,1768119031841,-151.0,0.00016202,2]
[401301251,1768119031850,-140.68559843,0.00016202,2]
[401301252,1768119031862,-10.31440157,0.00016202,2]
[401301253,1768119031872,-14.13632959,0.00016393,2]
[401301254,1768119031882,-322.62426884,0.00016447,3]
[401301255,1768119031895,-676.37573116,0.00016447,3]
[401301256,1768119031905,-734.19289492,0.00016448,2]
[401301257,1768119031927,-465.80710508,0.00016448,2]
[401301258,1768119031937,-239.08385592,0.00016449,2]
[401301259,1768119031974,-11690.24108378,0.00016449,2]
[401301261,1768119031984,-3085.07469576,0.00016678,2]
[401301264,1768119038009,-975.13,0.00016678,2]
[401301265,1768119038023,-3123.96507186,0.00016678,2]
[401301266,1768119038036,-990.98677168,0.00016678,2]
[401301267,1768119038050,-292.696336,0.00016678,2]
[401301435,1768119039888,-863.19684422,0.00016678,2]
[401301437,1768119039901,-756.19693336,0.00016678,2]
[401301439,1768119039914,-2184.25360571,0.00016678,2]
[401301444,1768119039948,-403.70094211,0.00016678,2]
[401301446,1768119039959,-166.66,0.00016724,2]
[401301448,1768119039970,-6348.25407907,0.00016788,2]
[401301451,1768119039983,-278.33381412,0.00016788,2]
[401301454,1768119040008,-795.45075039,0.00016788,2]
[401301456,1768119040018,-166.68,0.00016807,2]
[401301458,1768119040029,-889.64,0.00016851,2]
[401301461,1768119040040,-550.0,0.00016972,2]
[401301463,1768119040051,-339.68620394,0.00016999,2]
[401301465,1768119040062,-191.0,0.00017,2]
[401301467,1768119040074,-1000.0,0.00017001,2]
[401301469,1768119040085,-177.86,0.00017001,2]
[401301472,1768119040097,-166.66,0.00017055,2]
[401301474,1768119040107,-196.89594249,0.00017073,2]
[401301476,1768119040117,-145.00545253,0.00017073,2]
[401301478,1768119040130,-354.99454747,0.00017073,2]
[401301480,1768119040141,-500.0,0.00017073,2]
[401301482,1768119040152,-500.0,0.00017073,2]
[401301485,1768119040163,-500.0,0.00017073,2]
[401301487,1768119040174,-500.0,0.00017073,2]
[401301489,1768119040184,-500.0,0.00017073,2]
[401301491,1768119040194,-500.0,0.00017073,2]
[401301493,1768119040205,-59778.04,0.00017086,2]
[401301495,1768119040216,-578.20924308,0.00017099,2]
[401301497,1768119040226,-151.0,0.00017099,2]
[401301499,1768119040238,-553.64373807,0.00017099,2]
[401301502,1768119040249,-620.0,0.00017099,2]
[401301504,1768119040260,-322.6107,0.00017099,2]
[401301506,1768119040270,-339.68620394,0.00017099,2]
[401301508,1768119040281,-500.0,0.00017163,2]
[401301510,1768119040292,-200.0,0.00017176,2]
[401301512,1768119040302,-339.68620394,0.00017199,2]
[401301515,1768119040313,-2074.12,0.00017235,2]
[401301517,1768119040324,-339.68620394,0.00017299,2]
[401301519,1768119040334,-1500.0,0.00017334,2]
[401301521,1768119040344,-166.66,0.00017386,2]
[401301523,1768119040355,-339.68620394,0.00017399,2]
[401301525,1768119040366,-339.68620394,0.000175,2]
[401301527,1768119040377,-2000.0,0.000175,2]
[401301530,1768119040388,-339.68620394,0.000176,2]
[401301532,1768119040399,-1000.0,0.00017611,2]
[401301534,1768119040410,-1000.0,0.00017621,2]
[401301536,1768119040423,-1000.0,0.00017621,2]
[401301538,1768119040434,-1000.0,0.00017621,2]
[401301540,1768119040445,-1000.0,0.00017621,2]
[401301542,1768119040456,-1000.0,0.00017621,2]
[401301545,1768119040467,-1000.0,0.00017621,2]
[401301547,1768119040481,-1000.0,0.00017621,2]
[401301549,1768119040492,-1260.43990908,0.0001764,2]
[401301551,1768119040502,-339.68620394,0.000177,2]
[401301553,1768119040512,-1020.08839075,0.00017711,2]
[401301555,1768119040524,-339.68620394,0.000178,2]
[401301557,1768119040534,-304.85500001,0.00017833,2]
[401301559,1768119040545,-2500.0,0.00017837,2]
[401301562,1768119040560,-250.0,0.00017837,2]
[401301564,1768119040570,-300.0,0.00017837,2]
[401301566,1768119040580,-10000.0,0.000179,2]
[401301568,1768119040591,-161.33789898,0.000179,2]
[401301570,1768119040602,-339.68620394,0.000179,2]
[401301572,1768119040613,-855.79704076,0.000179,2]
[401301574,1768119040624,-255.8202143,0.000179,3]
[401301576,1768119040635,-5197.5122676,0.00017999,2]
[401301578,1768119040645,-500.0,0.00017999,2]
[401301580,1768119040655,-500.0,0.00017999,2]
[401301582,1768119040666,-156.63659076,0.00017999,2]
[401301584,1768119040676,-435.83273103,0.00017999,2]
[401301587,1768119040686,-434.57580472,0.00017999,2]
[401301589,1768119040697,-500.0,0.00017999,2]
[401301591,1768119040707,-263.77980935,0.00017999,2]
[401301593,1768119040718,-500.0,0.00017999,2]
[401301595,1768119040729,-500.0,0.00017999,2]
[401301597,1768119040739,-500.0,0.00017999,2]
[401301599,1768119040750,-5071.0,0.00018,2]
[401301601,1768119040760,-260.93091767,0.00018,2]
[401301603,1768119040770,-1339686.36870778,0.00018,2]